Workbook

Sheet Portada

Sheet Balance de Comprobación
C2: Fondo de Jubilaciones y Pensiones del Poder Judicial
C4: Balance de Comprobación
C6: Al 31 de Diciembre 2019
C9: ACTIVO
C10: Cuentas Corrientes Y De Ahorro
C11: Inversiones En Valores De Emisores Nacionales | F11: 5957124059
C12: Cuentas Por Cobrar | F12: 5.566866046e+11
C13: Productos Por Cobrar Sobre Inversiones | F13: 1045244312
C14: Préstamos a Afiliados | F14: 9239702918
C15: Aportes Por Cobrar A Los Trabajadores | F15: 0
C16: Aportes Por Cobrar Al Patrono | F16: 6384865285
C17: Aportes Por Cobrar Al Estado | F17: 4667193745
C18: Otros Aportes Por Cobrar | F18: 401687424.4
C19: Mobiliario Y Equipo | F19: 211735284.1
C20: Equipo De Cómputo
C21: (Depreciación Acumulada)
C22: Costo de Programas Informáticos-Software | F22: 7618670
C23: (Amortización Programas Informáticos) | F23: -7618670
C24: GASTOS
C25: Pérdidas por Negociación de Instrumentos Financieros | F25: 0
C26: Pérdidas Por Fluctuación Cambiaria | F26: 1133866051
C27: Pérdidas por Variaciones en la Unidad de Referencia | F27: 31291906.6
C28: Gastos Generales | F28: 590729081
C29: PASIVO
C30: Retenciones A Pensionados | H30: 931509437.2
C31: Obligaciones Por Liquidar Empleados | H31: 4165718.77
C32: Obligaciones Transitorias por Liquidar | H32: 2907741466
C33: Retención Por Servicios Recibidos
C34: Cotización Seguro De Enfermedad Y Maternidad | H34: 590541733.5
C35: Provisión Para Pensiones En Curso De Pago | H35: 5.741898476e+11
C36: PATRIMONIO
C37: Aportaciones recibidas | H37: 1432934799
C38: INGRESOS
C39: Productos Sobre Inversiones De Emisores Nacionales | H39: 3624853515
C40: Intereses Sobre Saldos En Cuentas Bancarias | H40: 34956227.33
C41: Por Negociación de Instrumentos Financieros | H41: 0
C42: Ganancias por Fluctuación Cambiaria | H42: 2484917977
C43: Ganancias por Variaciones en la Unidad de Referencia | H43: 148515570.3
C44: Ingresos sobre Préstamos de Afiliados | H44: 0
C45: Otros Ingresos | H45: 60564.46
C49: Sumas Iguales | F49: =SUM(F10:F28) -> 5.863500447e+11 | H49: =SUM(H30:H45) -> 5.863500447e+11
C55: Lic. Luis Guillermo Vásquez Ureña | F55: MBA. María Antonieta Herrera Charraun
C56: Jefe Subproceso Contable | F56: Jefa Proceso Presupuestario Contable
D62: MBA. Floribel Campos Solano
D64: Jefa a.i. Macroproceso Financiero Contable
C66: Realizado por:
C67: Licda. Yesenia Flores Chacón
C68: Coordinadora de Unidad 1 a.i.
C71: Observación: Enlace al Manual de Políticas Contables.

Sheet Cambios Act. Netos Disponibles
B1: Fondo de Jubilaciones y Pensiones
B2: Estado de Cambios en los Activos Netos Disponibles
B3: Por el mes terminado al 31/12/2019
B4: (En colones sin céntimos)
D7: SALDO MENSUAL | G7: SALDO ACUMULADO
C8: NOTAS
B9: SALDO INICIAL | E9: 1515754202 | F9: (1) | H9: 4387562557 | I9: (2)
B11: INGRESOS | E11: =D13+D21 -> 6293303854 | H11: =G13+G21 -> 6.127704589e+10
B13: INGRESOS FINANCIEROS | D13: =SUM(D14:D19) -> 6293243290 | G13: =SUM(G14:G19) -> 6.119790721e+10
B14: Productos sobre Inversiones de Emisores Nacionales | C14: Nota 1 | D14: =+'Nota 1'!H24 -> 3624853515 | G14: =+'Nota 1'!H37 -> 4.176295554e+10
B15: Intereses sobre Saldos en Cuentas Corrientes | C15: Nota 2 | D15: =+'Nota 2'!G21 -> 34956227.33 | G15: =+'Nota 2'!G36 -> 305719012.8
B16: Por negociación de instrumentos financieros | C16: Nota 3 | D16: 0 | G16: 27092481.01
B17: Ganancias por Fluctuación Cambiaria | C17: Nota 4 | D17: =+'Nota 4'!D17 -> 2484917977 | G17: =+'Nota 4'!F17 -> 1.668256138e+10
B18: Ganancias por Variaciones en la Unidad de Referencia | C18: Nota 5 | D18: =+'Nota 5'!D15 -> 148515570.3 | G18: =+'Nota 5'!F15 -> 2419529371
B19: Ingresos sobre Préstamos a Afiliados y Pensionados | C19: Nota 6 | D19: =+'Nota 6'!J13 -> 0 | G19: =+'Nota 6'!L13 -> 49424.37
B21: OTROS INGRESOS | D21: 60564.46 | G21: 79138680.57
B23: PLAN DE CONTRIBUCIONES | C23: Nota 7 | E23: =SUM(D26:D29) -> 7883442337 | H23: =SUM(G26:G29) -> 9.274002451e+10
B25: RESERVAS EN FORMACION
B26: De los trabajadores | D26: =+'Nota 7'!F14 -> 3250357069 | G26: =+'Nota 7'!H14 -> 3.803405183e+10
B27: Del Patrono | D27: =+'Nota 7'!F15 -> 3394059616 | G27: =+'Nota 7'!H15 -> 4.012025099e+10
B28: Del Estado | D28: =+'Nota 7'!F16 -> 292728858 | G28: =+'Nota 7'!H16 -> 3582108978
B29: De los Pensionados | D29: =+'Nota 7'!F17+'Nota 7'!F18 -> 946296794.4 | G29: =+'Nota 7'!H17+'Nota 7'!H18 -> 1.10036127e+10
B30: Rendimientos Acumulados | D30: 0
B32: UTILIDAD ( PERDIDA DEL EJERCICIO ) | D32: 0
B34: TOTAL ADICIONES | E34: =E11+E23 -> 1.417674619e+10 | H34: =H11+H23 -> 1.540170704e+11
B36: SALIDA DE RECURSOS | E36: =D37 -> 7966261740 | H36: =G37 -> 1.238422302e+11
B37: Por Nuevos Pensionados | C37: Nota 8 | D37: =+'Nota 8'!D16 -> 7966261740 | G37: =+'Nota 8'!F16 -> 1.238422302e+11
B39: GASTOS | E39: =D41+D47 -> 1755887039 | H39: =G41+G47 -> 2.859205109e+10
B41: GASTOS FINANCIEROS | D41: =D43+D44+D45 -> 1165157958 | G41: =SUM(G43:G45) -> 2.179553497e+10
B42: Pérdida por Negociación de Inst. Financ. | D42: 0 | G42: 0
B43: Pérdida por Negociación de Instrumentos Financieros | C43: Nota 9 | D43: =+'Nota 9'!D11 -> 0 | G43: =+'Nota 9'!F11 -> 396736.05
B44: Pérdida por Fluctuación Cambiaria | C44: Nota 10 | D44: =+'Nota 10'!D16 -> 1133866051 | G44: =+'Nota 10'!F16 -> 2.127614579e+10
B45: Pérdida por Variaciones en la Unidad de Referencia | C45: Nota 11 | D45: =+'Nota 11'!D15 -> 31291906.6 | G45: =+'Nota 11'!F15 -> 518992440.3
B47: GASTOS GENERALES | C47: Nota 12 | D47: =+'Nota 12'!D16 -> 590729080.9 | G47: =+'Nota 12'!F16 -> 6796516126
B49: TOTAL DE DEDUCCIONES | E49: =E36+E39 -> 9722148779 | H49: =H36+H39 -> 1.524342813e+11
B51: ACTIVOS NETOS DISPONIBLES PARA BENEFICIOS
B52: FUTUROS AL FINAL DEL PERIODO (3) | E52: =E9+E34-E49 -> 5970351615 | H52: =H9+H34-H49 -> 5970351615
B55: Observaciones:
B56: (1) Saldo inicial mensual: Corresponde al total de activos disponibles para beneficios futuros al final del mes de noviembre 2019.
B57: (2) Saldo acumulado: Pertenece al total de activos disponibles de beneficios futuros al final del año anterior (Diciembre 2018).
B58: (3) Activos Netos Disponibles para Beneficios Futuros al Final del Periodo: Corresponde a la suma del saldo inicial mas el total de adiciones, menos el total de deducciones.
B62: Lic. Luis Guillermo Vásquez Ureña | E62: MBA. María Antonieta Herrera Charraun
B63: Jefe Subproceso Contable | E63: Jefa Proceso Presupuestario Contable
C69: MBA. Floribel Campos Solano
C71: Jefa a.i. Macroproceso Financiero Contable
B75: Realizado por:
B76: Licda. Yesenia Flores Chacón
B77: Coordinadora de Unidad 1 a.i.
B81: Observación: Enlace al Manual de Políticas Contables.

Sheet Act. Netos Dispon. Beneficios
B2: Fondo de Jubilaciones y Pensiones del Poder Judicial
B3: Estado de Activos Netos Disponibles para Beneficios
B4: AL 31/12/2019
B5: (En colones sin céntimos)
C6: NOTAS
B7: DISPONIBILIDADES | E7: =D8 -> 5957124059
B8: Cuentas Corrientes y de Ahorro | C8: Nota 13 | D8: =+'Nota 13'!D23 -> 5957124059
B10: INVERSIONES EN VALORES | E10: =D12 -> 5.566866046e+11
B11: EN CURSO DE PAGO
B12: Inversiones en Valores de Emisores Nacionales | C12: Nota 14 | D12: =+'Nota 14'!D29 -> 5.566866046e+11
B14: CUENTAS Y PRODUCTOS POR COBRAR SOBRE INVERSIONES | E14: =SUM(D16:D17) -> 1.028494723e+10
B15: PROVISION PARA PENSIONES EN CURSO DE PAGO
B16: Cuentas Por Cobrar | C16: Nota 15 | D16: =+'Nota 15'!D16 -> 1045244312
B17: Productos Por Cobrar Sobre Inversiones De Emisores Nacionales | C17: Nota 16 | D17: =+'Nota 16'!D25 -> 9239702918
B19: PRESTAMOS A AFILIADOS Y PENSIONADOS | E19: =D20 -> 0
B20: Préstamos por Cobrar | C20: Nota 17 | D20: =+'Nota 17'!D24 -> 0
B21: Productos por Cobrar sobre Préstamos | C21: Nota 15 | D21: 0
B23: APORTES POR COBRAR | E23: =SUM(D24:D27) -> 1.166548174e+10
B24: Aportes Por Cobrar A Los Trabajadores | C24: Nota 18 | D24: =+'Nota 18'!J12 -> 6384865285
B25: Aportes Por Cobrar Al Patrono | C25: Nota 18 | D25: =+'Nota 18'!J16 -> 4667193745
B26: Aportes Por Cobrar Al Estado | C26: Nota 18 | D26: =+'Nota 18'!J19 -> 401687424.4
B27: Otros Aportes Por Cobrar | C27: Nota 18 | D27: =+'Nota 18'!J22 -> 211735284.1
B29: PROPIEDAD, PLANTA Y EQUIPO | E29: 0
B30: Mobiliario y Equipo | D30: 0
B31: Equipo de Cómputo | D31: 0
B32: (Depreciación Acumulada) | D32: 0
B34: OTROS ACTIVOS | E34: 0
B35: Intangibles | C35: Nota 19 | D35: 0
B37: ACTIVO TOTAL | E37: =E7+E10+E14+E19+E23 -> 5.845941576e+11
B39: CUENTAS POR PAGAR | E39: =SUM(D40:D42) -> 3843416622
B40: Retenciones A Pensionados | C40: Nota 20 | D40: =+'Nota 20'!E17 -> 931509437.2
B41: Obligaciones Por Liquidar Empleados y Exempleados | C41: Nota 21 | D41: =+'Nota 21'!D15 -> 4165718.71
B42: Obligaciones Transitorias por Liquidar | C42: Nota 22 | D42: =+'Nota 22'!D26 -> 2907741466
B44: PROVISIONES | E44: =D45 -> 590541733.5
B45: Cotización Seguro De Enfermedad y Maternidad | C45: Nota 23 | D45: =+'Nota 23'!F12 -> 590541733.5
B47: PROVISIONES PARA PENSIONES EN CURSO DE PAGO | C47: Nota 24 | E47: =+'Nota 24'!J16 -> 5.741898476e+11
B49: PASIVO TOTAL | E49: =E47+E44+E39 -> 5.78623806e+11
B51: ACTIVOS NETOS DISPONIBLES PARA BENEFICIOS FUTUROS (1) | E51: =+'Cambios Act. Netos Disponibles'!E52 -> 5970351615
B53: CUENTAS DE ORDEN | C53: Nota 25 | E53: =+'Nota 25'!D12 -> 329328038.1
B55: Observaciones:
B56: (1) Activos Netos Disponibles para Beneficios Futuros al Final del Periodo: Corresponde al total de activo menos el total de pasivo.
B60: Lic. Luis Guillermo Vásquez Ureña | C60: MBA. María Antonieta Herrera Charraun
B61: Jefe Subproceso Contable | C61: Jefa Proceso Presupuestario Contable
B66: MBA. Floribel Campos Solano
B67: Jefa a.i. Macroproceso Financiero Contable
B72: Realizado por:
B73: Licda. Yesenia Flores Chacón
B74: Coordinadora de Unidad 1 a.i.
B76: Observación: Enlace al Manual de Políticas Contables.

Sheet Nota 1
B2: Nota 1:
B3: Productos sobre Inversiones de Emisores Nacionales
B5: al 31 de Diciembre de 2019
B9: De acuerdo con lo establecido por la SUPEN, este rubro se encuentra conformado por los intereses devengados del mes producto de las inversiones en títulos valores, la amortización de los descuentos, las comisiones pagadas y primas en títulos valores.
B13: MENSUAL
A15: Cuenta Contable | B15: PRODUCTOS SOBRE INVERSIONES DE VALORES NACIONALES | D15: COLONES | F15: DOLARES | H15: TOTAL
A17: 511.01. | B17: Intereses devengados | D17: 3322854872 | F17: 253690677.1 | H17: 3576545549
A18: 511.01. | B18: Amortización de descuento | D18: 27329167.88 | F18: 7679206.45 | H18: 35008374.33
A19: 511.01. | B19: Comisión devengada | D19: -431203.12 | F19: -27973.2 | H19: -459176.32
A20: 511.01. | B20: Amortización de prima | D20: -133936599.5 | F20: -2096381.62 | H20: -136032981.2
A21: 511.01. | B21: Otros intereses devengados | D21: 0 | F21: 0 | H21: 0
A22: 511.01. | B22: Ingresos por Dividendos | D22: 0 | F22: 149791748.8 | H22: 149791748.8
A23: 511.01. | B23: Ingresos por Rendimientos | D23: 0 | F23: 0 | H23: 0
B24: TOTAL DE PRODUC. SOBRE INVERS. DE VALORES NACIONALES. | D24: =SUM(D17:D23) -> 3215816237 | F24: =SUM(F17:F23) -> 409037277.6 | H24: =SUM(H17:H23) -> 3624853515
B26: ACUMULADO
A28: Cuenta Contable | B28: PRODUCTOS SOBRE INVERSIONES DE VALORES NACIONALES | D28: COLONES | F28: DOLARES | H28: TOTAL
A30: 511.01. | B30: Intereses devengados | D30: 3.810437169e+10 | F30: 3088443445 | H30: 4.119281513e+10
A31: 511.01. | B31: Amortización de descuento | D31: 262320439.6 | F31: 88995283.78 | H31: 351315723.4
A32: 511.01. | B32: Comisión devengada | D32: -8056978.78 | F32: -692188.35 | H32: -8749167.13
A33: 511.01. | B33: Amortización de prima | D33: -1598944924 | F33: -19762527.39 | H33: -1618707452
A34: 511.01. | B34: Otros intereses devengados | D34: 0 | F34: 0 | H34: 0
A35: 511.01. | B35: Ingresos por Dividendos | D35: 0 | F35: 1840812376 | H35: 1840812376
A36: 511.01. | B36: Ingresos por Rendimientos | D36: 5468922.34 | F36: 0 | H36: 5468922.34
B37: TOTAL DE PRODUC. SOBRE INVERS. DE VALORES NACIONALES. | D37: =SUM(D30:D36) -> 3.676515915e+10 | F37: =SUM(F30:F36) -> 4997796389 | H37: =SUM(H30:H36) -> 4.176295554e+10

Sheet Nota 2
C2: Nota 2:
C3: Intereses sobre Saldos en Cuentas Corrientes
C5: =+'Nota 1'!B5 -> al 31 de Diciembre de 2019
C7: Como resultado de los saldos que se mantienen en las cuentas corrientes del Banco Nacional de Costa Rica, Banco de Costa Rica y Banco Popular, al cierre del presente mes los intereses sobre saldos en cuentas corrientes son los siguientes:
C10: Mensual
B12: Cuenta Contable | C12: Cuenta Corriente | E12: Banco | G12: Intereses Ganados en el Periodo
B14: 513.01.00.1.01.01 | C14: 1234-0 | E14: Banco Nacional de Costa Rica | G14: 911.56
B15: 513.01.00.1.01.03 | C15: 229-32-9 | E15: Banco de Costa Rica | G15: 34417447.18
B16: 513.01.00.1.01.04 | C16: 18-1019277 | E16: Banco Popular y de Desarrollo Comunal | G16: 0
B17: 513.01.00.1.01.05 | C17: 174961-7 | E17: Banco de Costa Rica | G17: 0
B18: 513.01.00.2.01.02 | C18: 1914-1 $ | E18: Banco Popular y de Desarrollo Comunal | G18: 0
B19: 513.01.00.2.01.03 | C19: 112247-9 $ | E19: Banco de Costa Rica | G19: 537868.59
C21: Total | G21: =SUM(G14:G20) -> 34956227.33
C24: Acumulado
B26: Cuenta Contable | C26: Cuenta Corriente | E26: Banco | G26: Intereses Ganados en el Periodo
B28: 513.01.00.1.01.01 | C28: 1234-0 | E28: Banco Nacional de Costa Rica | G28: 20621.17
B29: 513.01.00.1.01.03 | C29: 229-32-9 | E29: Banco de Costa Rica | G29: 300173360.8
B30: 513.01.00.1.01.04 | C30: 18-1019277 | E30: Banco Popular y de Desarrollo Comunal | G30: 3849.52
B31: 513.01.00.1.01.05 | C31: 174961-7 | E31: Banco de Costa Rica | G31: 0.02
B32: 513.01.00.2.01.02 | C32: 1914-1 $ | E32: Banco Popular y de Desarrollo Comunal | G32: 5.97
B33: 513.01.00.2.01.03 | C33: 112247-9 $ | E33: Banco de Costa Rica | G33: 5521175.23
C36: Total | G36: =SUM(G28:G35) -> 305719012.8
L51: 0

Sheet Nota 3
B2: Nota 3:
B3: Ganancias por Negociación de Instrumentos Financieros
B5: =+'Nota 1'!$B$5:$H$5 -> al 31 de Diciembre de 2019
B8: Se registra la ganancia generada pruducto del canje de instrumentos del Ministerio de Hacienda realizado por el Porceso de Inversiones.
A11: Cuenta Contable | B11: Cuenta | D11: Mes | F11: Acumulado
A12: 514.00.00 | B12: Ganancia por Negociación de Instrumentos Financieros | D12: 0 | F12: 27092481.01
B13: Ganancia Total Generada | D13: =SUM(D12:D12) -> 0 | F13: =SUM(F12:F12) -> 27092481.01

Sheet Nota 4
B2: Nota 4:
B3: Ganancias por Fluctuación Cambiaria
B5: =+'Nota 1'!$B$5:$H$5 -> al 31 de Diciembre de 2019
B8: Se registra la ganancia generada en las partidas de los estados financieros cuando el tipo de cambio para la valuación de los activos en dólares, emitido por el Banco Central de Costa Rica, experimenta una tendencia al alza, provocando la ganancia en el valor de los rubros que componen estos estados financieros.
B10: Es importante señalar que el tipo de cambio utilizado para la valoración de las inversiones en dólares y cuentas relacionadas, así como de los movimientos de las cuentas bancarias en dólares es el tipo de cambio para el sector público no bancario, de conformidad con lo establecido en la Ley Orgánica del Banco Central de Costa Rica (BCCR) en su artículo 89.
A12: Cuenta Contable | B12: Cuenta | D12: Mes | F12: Acumulado
A13: 517.02.00 | B13: Por Cuentas Corrientes | D13: 5272951.68 | F13: 60453006.33
A14: 517.04.00 | B14: En Inversiones En Valores De Emisores Nacionales $ | D14: 2451818294 | F14: 1.646643384e+10
A15: 517.07.00 | B15: Por Cuentas Por Cobrar | D15: 240842.41 | F15: 5031715.63
A16: 517.08.00 | B16: Por Productos Por Cobrar Sobre Inversion | D16: 27585888.92 | F16: 150642822
B17: Ganancia Total Generada | D17: =SUM(D13:D16) -> 2484917977 | F17: =SUM(F13:F16) -> 1.668256138e+10

Sheet Nota 5
B2: Nota 5:
B3: Ganancias por Variaciones en la Unidad de Referencia
B5: =+'Nota 1'!$B$5:$H$5 -> al 31 de Diciembre de 2019
B8: Ganancias en virtud de la colocación de recursos a través de Títulos de Unidades de Desarrollo (TUDES) que ofrece el Ministerio de Hacienda a largo plazo.
B10: Los Tudes, son títulos valores expresados en unidades de desarrollo, éstas unidades corresponden a un índice calculado por la Superintendencia General de Valores, con base a la variación registrada en el Índice de Precios al Consumidor del mes anterior. Al vencimiento de los cupones y del principal se cancelan en colones, por lo que la ganancia o la pérdida en los títulos valores va a depender del comportamiento de la inflación y por ende, de la variación en el valor de la unidad de desarrollo. Mensualmente se realiza el ajuste de las inversiones de acuerdo con el valor de la unidad de desarrollo al final del mes, a fin de que se actualice su valor, reflejando una pérdida o ganancia.
A13: Cuenta Contable | B13: Cuenta | D13: Mes | F13: Acumulado
A14: 518.00.00 | B14: En valores emitidos por el Gobierno | D14: 148515570.3 | F14: 2419529371
B15: Ganancia Total Generada | D15: =SUM(D14:D14) -> 148515570.3 | F15: =SUM(F14:F14) -> 2419529371

Sheet Nota 6
B2: Nota 6:
B3: Ingresos sobre Préstamos a Afiliados y Pensionados
B5: =+'Nota 1'!$B$5:$H$5 -> al 31 de Diciembre de 2019
B8: Constituye el interés devengado por el crédito otorgado a la Asociación Nacional de Empleados Judiciales (ANEJUD), según contrato suscrito en diciembre de 2008 por ¢1,000,000,000 (sin número de contrato), entre ANEJUD y el Consejo Superior del Poder Judicial, en su condición de administrador de este Fondo. El detalle de los montos se muestran en la nota N° 17 de este informe.
B10: La totalidad del préstamo de ANEJUD se canceló en febrero de 2019.
A11: Cuenta Contable | B11: Total de Préstamo | D11: Entidad | F11: Plazo | H11: Tasa actual | J11: Ingreso Por Interes mensual | L11: Ingreso Por Interes Acumulado
A13: 519.00.00 | B13: 1000000000 | D13: ANEJUD | F13: 10 años | H13: 0.0808 | J13: 0 | L13: 49424.37

Sheet Nota 7
B2: Nota 7:
B3: PLAN DE CONTRIBUCIONES
B5: =++'Nota 1'!$B$5:$H$5 -> al 31 de Diciembre de 2019
B8: Comprende los aportes realizados por el Poder Judicial en su calidad de Patrono y Estado, los cuales se aplican sobre los salarios devengados por los servidores judiciales.
B10: Asimismo, está constituido por la contribución de los empleados, jubilados y pensionados judiciales, a los cuales en la actualidad se les deduce de su salario, jubilación y pensión.
A12: Cuenta Contable | B12: Aportes | D12: Porcentajes | F12: Mensual | H12: Acumulado
A14: 311.01.00.1 | B14: Trabajadores | D14: 0.13 | F14: 3250357069 | H14: 3.803405183e+10
A15: 312.01.00.1 | B15: Patrono | D15: 0.1436 | F15: 3394059616 | H15: 4.012025099e+10
A16: 313.01.00.1.00 | B16: Estado | D16: 0.0124 | F16: 292728858 | H16: 3582108978
A17: 314.01.00.1.00.00 | B17: Jubilados y Pensionados | D17: 0.13 | F17: 877189001.9 | H17: 1.009100646e+10
A18: 314.01.00.1.00.01 | B18: Contribución Solidaria | D18: - | F18: 69107792.57 | H18: 912606242.4
B20: Total Aportes | F20: =SUM(F14:F18) -> 7883442337 | H20: =SUM(H14:H18) -> 9.274002451e+10
B23: Notas:
B25: 1-) Mediante Acuerdo del Consejo Superior N° 2-2018, art I, se autoriza a disminuir el porcentaje del aporte estatal, a partir del mes de enero 2018 pasando de 1.24% a 0.58%, lo anterior por cuanto el Ministerio de Hacienda recortó del Presupuesto del Poder Judicial la suma de ¢1,200,000,000 (Mil doscientos millones de colones).
B27: 2-) Mediante Acuerdo del Consejo Superior, sesión N°26-2018 del 5/04/2018, en su punto tercer indica: "[...] modificar el acuerdo tomado en sesión N°2-18 del 11/01/2018, art I, por lo que deberá la Dirección de Gestión Humana registrar como porcentaje del aporte estatal al Fondo de Jubilaciones y Pensiones el definido por la Caja Costarricense del Seguro Social (CCSS)". Según lo definido en este acuerdo el porcentaje regresa al 1.24% establecido en Decreto Ejecutivo N° 39202-MTSS-H en su artículo 2, publicado en la Gaceta N° 170 del martes 01 de setiembre del 2015.
B29: 3-) Mediante la publicación de la Ley 9544, que reforma el Regimen de Jubilaciones y Pensiones del Poder Judicial y Acuerdo del Consejo Superior Sesión N°46-18 celebrada el 22/05/2018, art VI, se solicita realizar a partir de esta fecha el incremento al aporte obrero del 11% al 13%, así como el rebajo de la contribución especial, solidaria y redistributiva a las personas jubiladas y pensionadas, conforme el articulo 236 de esta Ley.
B31: 5-) En el Acuerdo del Consejo Superior, sesión N° 4-19 del 17 de enero de 2019 artículo XXXVI se acordó: "Tomar nota de la comunicación de la Dirección de Gestión Humana, en oficio DGH-004-2019 del 10 de enero de 2019, referente a el cambio realizado en el parámetro del aporte estatal al Fondo de Jubilaciones y Pensiones de un 0.58% a 1.24%, fundamentado en los recursos asignados por el Ministerio de Hacienda en la subpartida 60404, según lo establecido en la Ley de Presupuesto Ordinario y Extraordinario de la República para el Ejercicio Económico del 2019."
B33: 6-) En el aporte de trabajadores incluye el rubro de Reconocimeinto de tiempo servido.

Sheet Nota 8
B2: Nota 8:
B3: SALIDA DE RECURSOS
B5: =+'Nota 7'!B5:H5 -> al 31 de Diciembre de 2019
B8: Corresponde al traslado de todos los recursos de la cuenta patrimonial “Reserva en Formación” a la cuenta Provisión para Pensiones en Curso de Pago”, por ende todos los recursos generados de los aportes, así como los rendimientos obtenidos por las inversiones se continúan registrando en la Provisión Para Pensiones en Curso de Pago.
D11: Mensual | F11: Acumulado
B13: Aportes | D13: 7814334545 | F13: 9.182741827e+10
B14: Rendimientos | D14: 151927195.8 | F14: 3.201481198e+10
B16: TOTAL | D16: =SUM(D13:D14) -> 7966261740 | F16: =SUM(F13:F14) -> 1.238422302e+11
B19: La variación de los rendimientos de noviembre a diciembre, se debe a la baja del tipo de cambio de ¢ 22.05 (de octubre a noviembre), ya que el portafolio de inversiones del Fondo de Jubilaciones y Pensiones del Poder Judicial mantiene invertidos en dólares un monto cercano al 13.55% de su portafolio total, es decir una suma aproximada de $ 131 millones de dólares que justifica un efecto de la variación de un mes a otro. Esto de acuerdo a lo indicado por el Proceso de Inversiones mediante correo electrónico del 8 de enero de 2020.

Sheet Nota 9
B2: Nota 9:
B3: Pérdida por Negociación de Instrumentos Financieros
B5: =+'Nota 7'!B5:H5 -> al 31 de Diciembre de 2019
B8: Corresponde a gastos asociados a las comisiones producto de compra de divisas para la negociación de Inversiones.
A10: Cuenta Contable | B10: Cuenta | D10: Mes | F10: Acumulado
A11: 411.00.00 | B11: Pérdida por Negociación de Instrumentos Financieros | D11: 0 | F11: 396736.05
B12: Pérdida Total Generada | D12: =SUM(D11:D11) -> 0 | F12: =SUM(F11:F11) -> 396736.05

Sheet Nota 10
B2: Nota 10:
B3: Pérdida por Fluctuación Cambiaria
B5: =+'Nota 8'!B5:F5 -> al 31 de Diciembre de 2019
B8: Corresponde a la pérdida generada en cuentas corrientes, inversiones y cuentas relacionadas cuando el tipo de cambio para la valuación de los activos en dólares, emitido por el Banco Central de Costa Rica.
A11: Cuenta Contable | B11: Cuenta | D11: Mes | F11: Acumulado
A12: 416.02.00 | B12: Por Cuentas Corrientes | D12: 906985.2 | F12: 114098135.6
A13: 416.04.00 | B13: En Inversiones En Valores De Emisores Nacionales $ | D13: 1120287511 | F13: 2.094496916e+10
A14: 416.07.00 | B14: Por Cuentas Por Cobrar | D14: 970.7 | F14: 4301350.41
A15: 416.08.00 | B15: Por Productos Por Cobrar Sobre Inversion | D15: 12670584.43 | F15: 212777144.6
B16: Pérdida Total Generada | D16: =SUM(D12:D15) -> 1133866051 | F16: =SUM(F12:F15) -> 2.127614579e+10

Sheet Nota 11
B2: Nota 11:
B4: Pérdida por Variaciones en la Unidad de Referencia
B6: =+'Nota 10'!B5:F5 -> al 31 de Diciembre de 2019
B9: Pérdida generada por la variación en la unidad de referencia de las Unidades de Desarrollo (UDES), relativa a los recursos invertidos por el Fondo a través de títulos en UDES (TUDES) que ofrece el Ministerio de Hacienda a largo plazo.
B11: Conforme lo establece el manual de cuentas de SUPEN se registra la pérdida contable producto de la disminución en la unidad de referencia en los rubros de valor facial de las inversiones en TUDES, prima amortizada y el descuento recibido.
A13: Cuenta Contable | B13: Cuenta | D13: Mes | F13: Acumulado
A14: 417.00.00 | B14: En valores emitidos por el Gobierno | D14: 31291906.6 | F14: 518992440.3
B15: Pérdida Total Generada | D15: =SUM(D14:D14) -> 31291906.6 | F15: =SUM(F14:F14) -> 518992440.3

Sheet Nota 12
B2: Nota 12:
B3: GASTOS GENERALES
B5: =+'Nota 11'!B6:F6 -> al 31 de Diciembre de 2019
B8: Esta cuenta agrupa varias partidas, las cuales se describen a continuación:
A10: Cuenta Contable | B10: GASTOS GENERALES | D10: MENSUAL | F10: ACUMULADO
A12: 420.05.00 | B12: Servicios Bancarios | D12: 172184.67 | F12: 957895.11
A13: 420.07.00 | B13: Cotización Seguro De Enfermedad y Maternidad | D13: 590415674.5 | F13: 6792635089
A14: 420.13.00 | B14: Gastos Diversos | D14: 141221.73 | F14: 2923141.24
B16: TOTAL DE GASTOS GENERALES | D16: =SUM(D12:D15) -> 590729080.9 | F16: =SUM(F12:F15) -> 6796516126
B18: Gastos por servicios bancarios:
B19: Corresponde a gastos por comisiones bancarias cobradas por el Banco Nacional , lo anterior a raíz de conclusión “Convenio Institucional entre el Poder Judicial y la referida Entidad Bancaria”, cuyo objeto consistía en que el Poder Judicial aceptaba realizar una serie de transacciones bancarias con el Banco Nacional, a efecto de recibir un trato preferencial en algunos servicios bancarios, como lo fueron: exoneración del pago de cualquier tipo de comisión (transferencias electrónicas, giros bancarios, emisión de estados de cuenta, transacciones “SINPE”, transferencias entre cuentas del Poder Judicial y el Fondo de Jubilaciones y Pensiones), dichos gatos son del conocimiento de la Dirección Ejecutiva, según oficios DGBI-SML-25-2016, 2232-DE-2016 y 2342-DE-2016.
B21: Cotización Seguro de Enfermedad y Maternidad:
B22: Carga social en la que incurre el Fondo como Patrono, con la Caja Costarricense del Seguro Social, por concepto de Enfermedad y Maternidad, correspondiente al 8.75% sobre las jubilaciones y pensiones canceladas.
B24: Gastos diversos
B25: Corresponde a diversos ajustes relacionados principalmente con las inversiones y cuentas relacionadas.

Sheet Nota 13
B2: Nota 13:
B3: Cuentas Corrientes y de Ahorro
B5: =+'Nota 12'!B5:F5 -> al 31 de Diciembre de 2019
B8: El saldo en cuentas corrientes bancarias que mantiene el Fondo de Jubilaciones en colones y en dólares americanos son los siguientes:
A10: Cuenta Contable | B10: CUENTAS CORRIENTES Y DE AHORRO PROV. PARA PENSIONES EN CURSO DE PAGO | D10: TOTAL ¢ | F10: TIPO DE CAMBIO | H10: TOTAL $
A12: 112.01.00.1.01.01 | B12: Banco Nacional de C.R. Cta 1234-0 | D12: 99910.59
A13: 112.01.00.1.01.03 | B13: Banco de Costa Rica Cta 229-32-9 | D13: 5900016277
A14: 112.01.00.1.01.04 | B14: Banco de Costa Rica Cta 174961-7 | D14: 99000.01
A15: 112.01.00.1.01.05 | B15: Banco Popular Cta 1019277-0 | D15: 99000
A16: 112.01.00.1.01.06 | B16: Banco Nacional de C.R. 2413-8 | D16: 0
A17: 112.01.00.1.01.07 | B17: Banco de Costa Rica 349803-4 | D17: 108.94
A18: 112.01.00.1.01.08 | B18: Banco de Costa Rica 349824-7 | D18: 41.74
A19: 112.01.00.2.01.01 | B19: Banco de Costa Rica Cta. 112247-9 $ | D19: 55789478.75 | F19: 572.95 | H19: =+D19/F19 -> 97372.33397
A20: 112.01.00.2.01.02 | B20: Banco Nacional de C.R. Cta 601227-7 $ | D20: 727142.29 | F20: =F19 -> 572.95 | H20: =+D20/F20 -> 1269.119976
A21: 112.01.00.2.01.03 | B21: Banco Popular Cta 1914-1 $ | D21: 293099.95 | F21: =F20 -> 572.95 | H21: =+D21/F21 -> 511.5628763
B23: TOTAL EN CUENTAS CORRIENTES Y DE AHORRO | D23: =SUM(D12:D21) -> 5957124059 | H23: =SUM(H19:H21) -> 99153.01683
B25: Nota:
B26: Los documentos pendientes de asocies y aprobaciones, se informaron a los Subprocesos correspondientes para su registro, y así el debido seguimiento.

Sheet Nota 14
B2: Nota 14:
B3: Inversiones en Valores de Emisores Nacionales
B5: =+'Nota 13'!B5:H5 -> al 31 de Diciembre de 2019
B8: Dicho rubro resume los diferentes movimientos de inversiones en colones y dólares emitidas por el Gobierno de Costa Rica tales como el Ministerio de Hacienda, Banco Central de Costa Rica, Banco de Costa Rica, el Banco Nacional de Costa Rica, Banco Popular y de Desarrollo Comunal e Instituto Costarricense de Electricidad, considerando el registro de la inversión al costo de adquisición (Valor Facial + Primas – Descuentos).
A10: Cuenta Contable | B10: COLONES
A12: 121.00.00 | B12: Inv. Valor Facial | D12: 4.781831098e+11
A13: 121.00.00 | B13: Primas | D13: 8141033054
A14: 121.00.00 | B14: Descuentos | D14: -4495403155
A15: 121.00.00 | B15: Operaciones de Reportos | D15: 0
B17: SALDO INVERSIONES EN COLONES | D17: =SUM(D12:D15) -> 4.818287397e+11
A20: Cuenta Contable | B20: SALDO DÓLARES | F20: TIPO DE CAMBIO | H20: SALDO EN COLONES
A22: 121.00.00 | B22: Inv. Valor Facial | D22: 74008023.95 | F22: 572.95 | H22: 4.240289732e+10
A23: 121.00.00 | B23: Primas | D23: 179490.6794 | F23: 572.95 | H23: 102839184.8
A24: 121.00.00 | B24: Descuentos | D24: -602916.0997 | F24: 572.95 | H24: -345440779.3
A25: 121.00.00 | B25: Títulos de Participación | D25: 57068800.33 | F25: 572.95 | H25: 3.269756915e+10
B27: SALDO INVERSIONES EN DÓLARES (COLONIZADO) | D27: =SUM(D22:D25) -> 130653398.9 | H27: =SUM(H22:H25) -> 7.485786488e+10
B29: TOTAL GENERAL: | D29: =+D17+H27 -> 5.566866046e+11

Sheet Nota 15
B2: Nota 15:
B3: CUENTAS POR COBRAR
B5: =+'Nota 14'!B5:H5 -> al 31 de Diciembre de 2019
B8: En esta cuenta se registran aquellas partidas que debe recuperar el Fondo y se conforma por los siguientes conceptos:
A10: Cuenta Contable | B10: Cuentas por Cobrar | D10: Monto
A12: 131.01.00 | B12: Títulos vencidos pendientes de cobro | D12: 434575315.7
A13: 131.02.00 | B13: Impuesto Sobre La Renta Por Cobrar | D13: 610668995.9
A14: 131.03.00 | B14: Sumas Pend. De cobrar | D14: 0
B16: Saldo: | D16: =D12+D13+D14 -> 1045244312
B19: 1) Títulos y Cupones de inversión vencidos pendientes de cobro, que en virtud de que el cierre de mes corresponde a un día no hábil, las entidades bancarias realizan el pago de estos el día hábil siguiente, para este mes esta cuenta no presenta saldo. Se solicitó al Proceso de Inversiones que es el encargado el seguimiento realizado. En diciembre 2019 se realiza un ajuste remitido por el Proceso de Inversiones por información errónea remitida por la SAFI del Grupo Financiero Improsa relativa al Fondo Inmobiliario Gibraltar (Fondo Cerrado), para el mes de octubre de 2019 y que trajo como consecuencia que el dato trimestral no coincidiera, por lo que los ingresos registrados contablemente durante octubre y noviembre 2019 se encontraran sobrevaluados respecto a la realidad. Se registra el ajuste a períodos anteriores en dólares contra los cupones vencidos pendientes de cobro que serán cancelados económicamente durante el mes de enero 2020, a fin de reflejar contable y financieramente el dato correcto para efectos del Estado Financiero y el cálculo que realiza este Proceso del rendimiento de cartera del FJPPJ que sirve como insumo para toma de decisiones y como variable para el cálculo del reconocimiento de tiempo servido fuera de esta Institución. Para la contabilidad del mes de enero 2020, se realizará el ajuste contable que corresponde para balancear los saldos contables con el auxiliar, conforme el proceso de integración contable que mantiene el Sistema de Carteras de Inversión (SCI) con el Sistema Contable. Esto según correo electrónico del Proceso de Inversiones del 07 de enero de 2020.
B21: 2) Corresponden aquellas sumas que debe recuperar el Régimen por concepto de exención del 8% del impuesto sobre la renta de los títulos valores, que por su situación particular, no es posible cobrarlos inmediatamente con el vencimiento de los cupones. El Subproceso de Ingresos indica lo siguiente con el seguimiento: (1) La Presidencia de la Corte remitió un oficio a Casa Presidencial para los años 2004 y 2005. La Dirección Ejecutiva con oficio 4167-DE-2019 del 11/09/2019 indicó al Director del Despacho de la Presidencia: "Traslado copia de oficio N° 737-TI-2019 de fecha 9 de setiembre en curso, referente a la devolución del impuesto sobre renta de vieja data, a efecto de que se nos informe si se ha tenido algún avance respecto a las conversaciones con el Presidente de la República, encomendadas por el Consejo Superior en sesión N° 84-18 celebrada el 25 de setiembre de 2018, artículo XV". Al respecto, la Presidencia de la Corte en el mes de setiembre de 2019, remite consulta por correo electrónico de fecha a Casa Presidencial el cual cita: "Siguiendo instrucciones superiores y en referencia al oficio adjunto, el cual fue recibido por el Ministerio de la Presidencia el 4 de abril de 2019, me permito consultarle si existe alguna respuesta al respecto." Se mantiene el seguimiento del caso. (2) La Presidencia de la Corte remitió un oficio a Grandes Contribuyentes para lo del periodo 2018. La Dirección Ejecutiva con oficio 4669-DE-2019 del 04 de octubre de 2019 remite a Financiero Contable el acuerdo del Consejo Superior de Sesión 80-19 del 12 de setiembre de 2019, mediante el cual se acordó: "...) Tener por recibido el oficio N° 4040-DE-2019 del 5 de setiembre de 2019, suscrito por la máster Ana Eugenia Romero Jenkins, Directora Ejecutiva, relacionado con las acciones legales procedentes en relación a la resolución DGCN-133-2019, emitida por la señora Patricia Castillo Vargas, directora de la Dirección de Grandes Contribuyentes Nacionales. 2.) Deberá el Departamento de Financiero Contable alertar a la Junta Administradora del Fondo de Pensiones del Poder Judicial, en el informe de traspaso de la Comisión del Fondo de Jubilaciones y Pensiones del Poder Judicial, sobre la situación expuesta en el criterio jurídico N° DJ-2361-2019 de fecha 3 de setiembre de 2019, suscrito por el máster Rodrigo Alberto Campos Hidalgo, Director Jurídico..." (3) El Subproceso de Ingresos realizó las gestiones correspondientes para la devolución de los correspondiente de Fondos Inmobiliarios. De lo anterior, se solicitará a dicho Subproceso de Ingresos que es el encargado de dichas cuentas el seguimiento del mismo. El cual indica que, en cuanto al criterio emitido por la firma Facio y Cañas que, con oficio 916-TI/UCC-2018 del 02 de octubre de 2018 se hizo del conocimiento de la Dirección Ejecutiva, de lo cual esa Dirección con oficio 4855-DE-2018 del 10 de octubre de 2018, indicó que se debe estar a espera del resultado del Recurso de Apelación contra la resolución N° DGCN-097-2018 de fecha 31 de mayo de 2018, en la cual se denegó la exención del Impuesto sobre la Renta en los rendimientos generados en operaciones de recompras o reportos realizadas por medio de una bolsa de valores y operaciones con fondos de inversión y fondos inmobiliarios.
B26: 3) En esta cuenta se registrará las cuentas por cobrar, generadas de la captación de inversiones, por comisiones pagadas de más, intereses moratorios u otros.

Sheet Nota 16
B2: Nota 16:
B4: Productos por cobrar sobre Inversiones de Emisores Nacionales
B6: =+'Nota 15'!B5:D5 -> al 31 de Diciembre de 2019
B8: La cuenta se conforma por el registro de:
B10: · La parte proporcional de los intereses devengados por las inversiones con cupones en títulos valores, que fueron adquiridos por el Fondo, acreditándose a la contrapartida de “Intereses Devengados”.
B12: · Los intereses que se acumulan al costo de las inversiones del Mercado Primario y Secundario, donde se adquieren títulos valores de primera y segunda mano, con cupones de intereses corridos, los cuales se suman a los desembolsos que realiza el Fondo para la adquisición de esos valores, y que al vencimiento del cupón son reembolsados.
A14: Cuenta Contable | B14: Productos por cobrar sobre Inversiones | D14: Monto
A16: 132.01.01 | B16: Sobre Valores Emitidos Por El Banco Central | D16: 89452527.77
A17: 132.01.02 | B17: Sobre Valores Emitidos Por El Gobierno | D17: 8197324054
A18: 132.01.03 | B18: Sobre Valor. Emit. otras Ent Pub. no Fininancieras | D18: 77647948.45
A19: 132.01.04 | B19: Sobre Valores Emitidos Por Bancos Comerciales | D19: 167867549.5
A20: 132.01.05 | B20: Sobre Val. Emit. Bcos. Pub. Ley. Especiales | D20: 137011180.6
A21: 132.01.06 | B21: Sobre Val. Emit. Bcos. Bancos Privados | D21: 570399656.8
A22: 132.01.09 | B22: Sobre operaciones de Reportos | D22: 0
A23: 132.02.00 | B23: Dividendos por Cobrar | D23: 0
B25: Saldo | D25: =SUM(D16:D24) -> 9239702918

Sheet Nota 17
B2: Nota 17:
B3: Préstamos por Cobrar
B5: =+'Nota 16'!B6:D6 -> al 31 de Diciembre de 2019
B8: Corresponde al saldo del préstamo por la suma de ¢1,000,000,000 concedido a la Asociación Nacional de Empleados Judiciales (ANEJUD) en apego de lo dispuesto en el artículo 238 de la Ley Orgánica del Poder Judicial, como se detalla:
B10: SUMAS GIRADAS A: | D10: MONTO
B12: ANEJUD: Débito No. 2863 de la Cta 174961-7 BCR el 9 de diciembre de 2008 (Autorizado por la Dirección Ejecutiva oficio No.9488-DE-08) | D12: 166244019.2
B13: ANEJUD: Débito No. 20806860 de la Cta 1234-0 BNCR el 9 de diciembre de 2008 (Autorizado por la Dirección Ejecutiva oficio No.9488-DE-08) | D13: 410921974.9
B14: ANEJUD: Débito No. 379 de la Cta 229-32-9 BCR el 10 de febrero de 2009 (Autorizado por la Dirección Ejecutiva con oficio No. 1123-DE-2009 ). El desembolso autorizado por esa Dirección Ejecutiva es por ¢422.834.006 de los cuales y a solicitud de ANEJUD con oficio del 10 de febrero de 2009 a Don Walter Jiménez Sorio, Jefe del Departamento Financiero Contable en su oportunidad, se deduce la primera cuota de intereses cancelada por adelantado de ¢6.876.239. El total girado con el débito No. 379 es ¢415.957.767. | D14: 422834006
B16: TOTAL DE LOS DESEMBOLSOS | D16: =SUM(D12:D14) -> 1000000000
B18: Menos. Amortizaciones | D18: =996790563.73+3161461.33+47974.94 -> 1000000000
B20: Saldo del préstamo | D20: =+D16-D18 -> 0
B22: Mas: Intereses por cobrar
B24: TOTAL POR COBRAR | D24: =+D20+D22 -> 0
B27: El contrato para dicho préstamo se firmó en diciembre 2008 (contrato sin número) del cual ya se giró la totalidad de los recursos a esa entidad.
B28: Para los efectos de este crédito, se establecen intereses corrientes conforme se indica en la cuarta cláusula del contrato que dice:
B30: Tipo de interés corriente: Intereses iguales o superiores a los que recibiría el Fondo de Jubilaciones del Poder Judicial por inversiones en títulos valores del sector público, revisable semestralmente, según lo establece el artículo 238 de la Ley Orgánica del Poder Judicial y lo dispuesto por la Corte Plena en sesión celebrada el 15-12-03 artículo XXXIX.

Sheet Nota 18
B2: Nota 18:
B3: APORTES POR COBRAR
B5: =+'Nota 17'!B5:D5 -> al 31 de Diciembre de 2019
B8: Corresponden a los aporte de los trabajadores, del patrono, del estado y jubilados-Pensionados que se detallan a continuación:
A10: Cuenta Contable | B10: Nota | D10: Sub-nota | F10: APORTES POR COBRAR | H10: Detalle | J10: Total
A12: 151.00.00 | B12: 16.1 | F12: Aporte por cobrar a los trabajadores | J12: =SUM(H13:H15) -> 6384865285
D13: 16.1.1 | F13: Aporte Ordinario | H13: 51391.02
D14: 16.1.2 | F14: Aporte Ordinario S .Escolar | H14: 2789332888
D15: 16.1.3 | F15: Aporte Reconocimiento de tiempo servido | H15: 3595481006
A16: 152.00.00 | B16: 16.2 | F16: Aportes por cobrar al Patrono | J16: =SUM(H17:H18) -> 4667193745
D17: 16.2.1 | F17: Aportes Por Cobrar Poder Jud.-Patrono | H17: 1584625695
D18: 16.2.2 | F18: Apor. x Cobrar Poder Jud.-Patrono (S.E) | H18: 3082568051
A19: 153.00.00 | B19: 16.3 | F19: Aportes por cobrar al Estado | J19: =SUM(H20:H21) -> 401687424.4
D20: 16.3.1 | F20: Aportes Por Cobrar Poder Jud.-Estado | H20: 136673170.8
D21: 16.3.2 | F21: Apor. x Cobrar Poder Jud.-Estado (S.E) | H21: 265014253.7
A22: 154.00.00 | B22: 16.4 | F22: Otros aportes por cobrar | J22: =SUM(H23:H26) -> 211735284.1
D23: 16.4.1 | F23: Sumas canceladas de más a Jubilados y Pensionados | H23: 82551101.46
D24: 16.4.2 | F24: Aportes Reconocimiento de Tiempo Servido Fuera del Poder Judicial (RTSFPJ) | H24: 34454233.09
D25: 16.4.3 | F25: Otros aportes por cobrar entidades deductoras | H25: 1192991.5
D26: 16.4.4 | F26: Sumas canceladas de más a Jubilados y Pensionados (Aguinaldo) | H26: 93536958.02
F28: TOTAL | J28: =SUM(J12:J26) -> 1.166548174e+10
B32: 16.1 Aportes por cobrar a los trabajadores
B33: Este grupo contempla las sumas por cobrar proveniente de la estimación mensual del salario escolar a los servidores activos del Poder Judicial. Adicionalmente, incluye los aportes por cobrar de las obligaciones por reconocimiento de tiempo servido fuera del Poder Judicial aprobado por el Consejo Superior de la Corte Suprema de Justicia, a servidores judiciales activos, para efectos de jubilación.
B35: 16.2 Aportes por cobrar al Patrono
B36: Se compone de las sumas pendientes de cobrar por aportes que recibe el Fondo de Jubilaciones y Pensiones del Estado en su calidad de patrono.
B38: 16.3 Aportes por cobrar al Estado
B39: Este grupo lo componen las sumas pendientes de cobrar por aportes al Estado que recibe el Fondo de Jubilaciones y Pensiones.
B40: 16.4 Otros aportes por cobrar
B41: 16.4 .1 Sumas canceladas de más a Jubilados y Pensionados
B43: • Por fallecimiento: Dineros girados de más a jubilados y pensionados fallecidos, donde la fecha de su defunción no fue conocida oportunamente. Es importante anotar que en estos casos el Macroproceso Financiero Contable realiza como uno de los mecanismos alternativos para la recuperación de las sumas giradas en demasía, una “Acta de autorización de rebajo”, mediante la cual los beneficiarios al Fondo de Socorro Mutuo designados por el jubilado fallecido, autorizan voluntariamente la deducción de ese beneficio, de las sumas pagadas de más por el Fondo de Jubilaciones. Dicha deducción se realiza solo con el consentimiento de los causahabientes, los cuales acceden a honrar las obligaciones del jubilado fallecido. Para los casos en donde el procedimiento no ha resultado factible, se analiza el caso y se eleva a conocimiento de las instancias correspondientes.
B45: • Estudios por sumas canceladas de más a jubilados y pensionados: Además se registran las sumas canceladas de más por conceptos diversos, entre los cuales los más relevantes son los montos pagados de más a jubilados que en determinado momento ejercieron un puesto en el Sector Público percibiendo otro sueldo del Estado, de sus bancos, de sus instituciones, de las municipalidades, de las juntas de educación y de las empresas de economía mixta, a los cuales se les suspendió el beneficio del Fondo de Jubilaciones tardíamente, girándoseles recursos en demasía que no les correspondía, de conformidad con lo que reza el artículo 234 de la Ley Orgánica del Poder Judicial.
B48: 16.4.2 Aportes Reconocimiento de Tiempo Servido
B49: Corresponde a las contribuciones por cobrar, como resultado del reconocimiento de tiempo servido fuera del Poder Judicial aprobado por el Consejo Superior de la Corte Suprema de Justicia, a servidores judiciales activos y jubilados o pensionados que asumen la deuda de un ex jubilado, según el artículo 231 de la Ley Orgánica del Poder Judicial.
B51: 16.4.3 Otros aportes por cobrar a Entidades Deductoras
B52: Corresponde a cuentas por cobrar a las entidades deductoras por conceptos diversos entre los cuales los más relevantes son producto de:
B54: · La anulación de pagos por concepto de asignaciones por exclusión de beneficiarios del Fondo (fallecimiento, mayoría de edad, matrimonio o cuando el beneficiario se encuentra laborando para otra Institución del Estado mientras recibía el beneficio de su jubilación por parte de este Fondo)
B56: · Diferencias en la aplicación de ajustes en los montos de las jubilaciones y pensiones que corresponden a deducciones en planilla que ya han sido giradas a dichas Entidades, cuando el Fondo se entera del suceso.

Sheet Nota 19
B2: Nota 19:
B3: INTANGIBLES
B5: =+'Nota 18'!B5:J5 -> al 31 de Diciembre de 2019
B7: Detalle | D7: Monto | F7: Amortización | H7: Total
B8: Sistema inversiones "Internet Systems Development Insyde S.A" | D8: 7618670 | F8: -7618670 | H8: 0
B11: Nota:
B12: Corresponde al registro de la compra del Sistema de Inversiones a la empresa Internet Systems Development Insyde S.A. con un valor de $14,750.00, valorado al tipo de cambio de la fecha de adquisición del activo (15 de agosto de 2007) de ¢516.52, para un total de ¢7,618,670. A dicho monto se descuenta la amortización acumulada al cierre del presente mes que asciende a ¢7,618,670 para un activo neto de ¢0.00. La vida útil del sistema en mención es de 5 años y considerando que fue registrado en setiembre del 2007 se encuentra depreciado en su totalidad, no obstante, a la fecha de este informe se encuentra en funcionamiento. En el periodo comprendido entre el 15 de julio a 12 de diciembre del 2011 la Dirección de Tecnología de Información realizó mejoras al sistema de Inversiones por la suma de ¢1.673.895. Lo anterior, de acuerdo con la información suministrada por la Dirección de Tecnología de la Información, mediante correo electrónico del 27 de abril del 2017 y oficio 1635-DTI-2017, dicho monto se encuentra registrado actualmente en los registros contables del Poder Judicial por igual suma. Con oficio 425-SC-2015 de 26 de agosto del 2015, se realizó la consulta a la Superintendencia de Pensiones (SUPEN) sobre la forma de registro contable de la información suministrada por la Dirección de Tecnología de Información, en virtud de que, en el Manual de Cuentas para el Régimen de Capitalización Colectiva emitido por dicha Superintendencia, no se observa alguna cuenta contable para el registro de la reevaluación de activos intangibles. La SUPEN ante la consulta realizada, indicó lo siguiente: “[…] conforme lo establecido en las Normas internacionales de Información Financiera (NIIF), se le comunica que no existe forma alguna de atribuir costo a un activo intangible luego del final de su vida útil: aunque esté en operación y generando beneficios, su valor en libros deberá seguir siendo cero…”

Sheet Nota 20
C2: Nota 20:
C4: Retenciones A Pensionados
C6: =+'Nota 19'!B5 -> al 31 de Diciembre de 2019
C9: Comprende las retenciones mensuales aplicadas en la planilla de jubilados y pensionados judiciales correspondientes a entidades deductoras, que realiza el Fondo a sus distintos beneficiarios, las cuales en el caso de la retención del impuesto sobre la renta y la cuota obrera por enfermedad y maternidad son honradas hasta el mes siguiente de su aplicación.
B12: Cuenta Contable | C12: RETENCIONES A JUBILADOS Y PENSIONADOS | E12: TOTAL
B14: 211.01.00.1.00.00 | C14: Impuesto Sobre La Renta | E14: 594129049.7
B15: 211.02.00.1.00.00 | C15: Caja Costarricense Seguro Social | E15: 337380387.5
C17: TOTAL DE RETENCIONES A JUBILADOS Y PENSIONADOS | E17: =SUM(E14:E16) -> 931509437.2

Sheet Nota 21
B2: Nota 21:
B3: Obligaciones Por Liquidar Empleados y Exempleados
B5: =+'Nota 20'!C6 -> al 31 de Diciembre de 2019
B6: En esta cuenta se registran sumas sujetas a devolución por parte del Fondo de Jubilaciones y Pensiones que corresponden a pagos recibidos de más en la cancelación de obligaciones por cobrar por reconocimiento de tiempo servido fuera del Poder Judicial, derivados por el traslado de cuotas que realiza la Caja Costarricense del Seguro Social u otro régimen de pensiones hacia el Fondo de Jubilaciones, las cuales deben abonarse a las cuentas de los servidores judiciales, sin embargo, algunos de esos traslados ingresan cuando ya el servidor ha cancelado la deuda, por lo que se genera un pasivo a favor de éste.
B8: OBLIGACIONES POR LIQUIDAR EMPL. Y EXEMPL. | D8: TOTAL
B10: ONGJ | C10: 9713.22 | D10: 3722763.78
B11: OFCS | D11: 137132.48
B12: EAFL | D12: 168689.97
B13: OFCS | D13: 137132.48
B15: OBLIGACIONES POR LIQUIDAR EMPL. Y EXEMPL. | D15: =SUM(D10:D14) -> 4165718.71
B17: Con respecto al caso de ONGJ, se ha dado el seguimiento respectivo y el Subproceso de Ingresos indicó lo siguiente: registrado en febrero 19 producto de devolución de Traslado de cuotas de la CCSS por RTS, cuya deuda fue reversada porque fue dejada según lo ordenado por Consejo Superiorsesión 14-19 artículo LXIV del 19 de febrero de 2019, sin embargo se debe esperar a que ese Consejo defina a cuanto equivale el monto a deducido por ese concepto y analice informe de Gestión Humana en donde se calcula dicho tiempo. Mediante correo electrónico del 2 de julio de 2019 el Subproceso de Ingresos informa: "Con acuerdo del Consejo Superior de sesión 32-19 artículo XII, del 08 de mayo de 2019, se acordó: ": Solicitar criterio a la Dirección Jurídica, respecto a la procedencia de acreditar los recursos trasladados por la Caja Costarricense de Seguro Social (CCSS) al Fondo de Jubilaciones y Pensiones del Poder Judicial a nombre de los servidores.” De lo anterior, el Subproceso de Ingresos mantuvo una reunión con la Dirección Jurídica el 3 de octubre de 2019 en la cual acordaron que dicha Dirección remitiría el criterio jurídico. Con correo del 11 de noviembre de 2019 el Subproceso de Ingresos indica que se reiteró a la Dirección Jurídica y se mantiene el seguimiento. Con correo del 06 de enero de 2020 el Subproceso de Ingresos indica que se está a la espera del criterio y se mantiene el seguimiento.
B21: Con respecto a los otros tres casos, son ingresos diciembre 2019.

Sheet Nota 22
B2: Nota 22:
B4: Obligaciones Transitorias por Liquidar
B6: =+'Nota 21'!B5:D5 -> al 31 de Diciembre de 2019
B9: En esta se registran sumas transitorias que deben liquidarse oportunamente y se compone de los siguientes rubros:
A11: Cuenta Contable | B11: Obligaciones Transitorias por Liquidar | D11: Saldo
A12: 216.03.00.1.01.01 | B12: Benef. no retirados y por fallecimiento | D12: 52679665.41
A13: 216.03.00.1.02.01 | B13: Sumas en transito por aclarar | D13: 142089110.1
A14: 216.03.00.1.03.03 | B14: Instituciones Financieras -Banco de Costa Rica | D14: 0
A15: 216.03.00.1.03.04 | B15: Institucione Financieras Banco Popular ¢ | D15: 498197.34
A16: 216.03.00.1.04.01 | B16: Intituciones Gubernamentales-Poder Judicial-¢ | D16: 0
A17: 216.03.00.1.04.03 | B17: Instituciones Gubernamentales-Caja Costarricense Seguro Social | D17: 3804819.36
A18: 216.03.00.1.05.01 | B18: Anejud | D18: 148458.06
A19: 216.03.00.1.05.03 | B19: Otros-Errores Bancarios | D19: 4610.86
A20: 216.03.00.1.06.01 | B20: Transitoria de deducción | D20: 0
A21: 216.03.00.1.07.01 | B21: * Aporte Junta Administradora FJP | D21: 2107380362
A22: 216.03.00.1.07.02 | B22: * Aporte Junta Administradora FJP - Jubilados y Pensionados | D22: 600444472.3
A23: 216.03.00.2.02.01 | B23: Sumas en tránsito por aclarar $ | D23: 459519.6
A24: 216.03.00.2.03.04 | B24: Instituciones Financieras-Banco Popular $ | D24: 232250.73
B26: Total Obligaciones Transitorias por Liquidar | D26: =SUM(D12:D24) -> 2907741466
B29: * Nota 1: Mediante la publicación de la Ley 9544, se aplica la reforma al capítulo IV, art 239, referente a la comisión por gastos administrativos, la cual indica: " Surgirá de deducir un cinco por mil de los sueldos de que devengen los servidores judicial, así como de las jubilaciones y las pensiones a cargo del Fondo. Con estos recursos se pagarán las dietas de los miembros de la Junta Administradora, los salarios de su personal y, en general, sus gastos administrativos...", dicho aporte dio inicio a partir del 22/05/2018.
B39: Con respecto a las sumas en tránsito por aclarar el monto más significativo de ¢2,766,747 es de meses anterios y se encuentra en análisis por parte del Subproceso de Ingresos, el cual indicó mediante correo electrónico del 9 de setiembre 2019 que la CCSS remitió una serie de informes de inspección y se está en el análisis para identificar los montos si corresponden al FJPPJ, por cuanto informarán cuando culminen. La CCSS el 28-10-2019 según oficio SARCL-691-10-2019 remitió la lista de los informes de inspección relacionados con este rubro, de lo cual con oficio 949-TI-2019 del 04-12-2019, se solicitó a la CCSS los informes faltantes en virtud que los remitidos anteriormente no corresponden. Y el monto de ¢ 18,237.45 corresponde a ingresos mayo 2019. El monto restante corresponde a registros de renta realizados por el Subproceso de Ingresos que son abonos de cuentas por cobrar que no estaban registrados en el sistema por cuanto el sistema de inversiones no estaba cerrado.
B41: El monto por pagar a la Caja Costarricense del Seguro Social, obedece a:
B42: o ¢2,890,336 correspondiente a pagos dobles efectuados por dicha entidad producto de informes de inspección por cuotas canceladas de más y devolución de aportes. Lo anterior fue comunicado a la Dirección Ejecutiva mediante oficio 293-SC-2013 del 5 de julio del 2013, siendo que, dicha Dirección informó mediante oficio 5912-DE-2013 que toma nota de lo anterior.
B43: o ¢2,888 por suma pagada de más por la C.C.S.S en el informe de inspección 1238-00249-2012-I, misma que fue informada a la Dirección Ejecutiva mediante oficio 383-SC-2013 del 4 de septiembre del 2013. Siendo que dicha Dirección mediante oficio 1861-DE/AL-2012 del 16 de setiembre del 2013 informa que se toma de lo informado.
B44: o ¢13,749 la cual obedece al caso de la señora MCSV dado que no corresponde la devolución efectuada por la C.C.S.S., en virtud que la Dirección Ejecutiva mediante oficio 555-DE/CA-2012 del 7 de junio del 2013, remitió resolución 3506-2012 del 7 de junio del 2012 en la cual ordena el archivo definitivo de la deuda por no proceder.
B45: o ¢843,454 corresponde a la devolución de cuotas obrero-patronales según resolución emitida por la C.C.S.S, mediante Informe de Inspección de dicha entidad No. 1238-00079-2015-I del 26 de enero de 2015.
B46: o ¢9.022 corresponde a la devolución de cuotas obrero-patronales según resolución emitida por la C.C.S.S, mediante Informe de Inspección de dicha entidad No. 1238-00274-2015-I del 09 de febrero de 2015.
B48: o El monto de ¢ 37,002, el Subproceso de Ingresos indica mediante correo electrónico del 12/08/2019 que se encuentra en proceso de verificar la naturaleza de los recursos, por lo que se encuentra en estudio
B49: o El monto de ¢ 8,368 con oficio SARCL-065-01-2019 la CCSS canceló del informe de inspección 1235-00902-2018-I el monto, sin embrago ya había sido cancelado mediante informe de inspección SARCL-0723-2018.

Sheet Nota 23
B2: Nota 23:
B4: Cotización Seguro De Enfermedad y Maternidad
B6: =+'Nota 22'!B6:D6 -> al 31 de Diciembre de 2019
B9: Este pasivo se conforma por la cuota patronal del 8.75% que el Fondo de Jubilaciones y Pensiones debe pagar mensualmente a la Caja Costarricense de Seguro Social (C.C.S.S.), según lo estipulado en el artículo 62 del Reglamento del Seguro Salud.
A11: Cuenta Contable | B11: Entidad | D11: Porcentaje | F11: Monto
A12: 234.00.00 | B12: Caja Costarricense del Seguro Social | D12: 0.0875 | F12: 590541733.5

Sheet Nota 24
B2: Nota 24:
B3: PROVISIONES PARA PENSIONES EN CURSO DE PAGO
B5: =+'Nota 23'!B6:F6 -> al 31 de Diciembre de 2019
B7: En esta cuenta se registra la totalidad de los recursos acumulados generados de las actividades del Fondo de Jubilaciones y Pensiones provenientes en su mayoría de los aportes recibidos de las cuotas obrero patronales-estatales, así como de los intereses netos ganados en inversiones, con el fin de atender las obligaciones que se deriven de los beneficios establecidos reglamentariamente para los jubilados y pensionados actuales así como de los nuevos jubilados y pensionados.
A10: Cuenta Contable | B10: Nota | D10: Sub-nota | F10: APORTES POR COBRAR | H10: Detalle | J10: Total
A12: 241.01.00 | B12: 22.1 | F12: Recursos recibido de reservas en formación | J12: 1.176971514e+12
A13: 241.02.00 | B13: 22.2 | F13: (Menos) Pago plan de beneficios | J13: 6.027816664e+11
A14: 241.02.00.1.02.03 | D14: 22.2.1 | F14: Traslados a otros regímenes | H14: 869721990.7
F16: TOTAL | J16: =+J12-J13 -> 5.741898476e+11

Sheet Nota 25
B2: Nota 25:
B4: CUENTAS DE ORDEN DEUDORAS Y ACREDORAS
B6: =+'Nota 24'!B5:J5 -> al 31 de Diciembre de 2019
B9: En esta cuenta se registran los saldos de las cuentas por cobrar por concepto de reconocimiento de tiempo servido en otras dependencias o instituciones públicas, de aquellos servidores en condición de propietarios que renunciaron al Poder Judicial.
B11: Concepto | D11: Monto
B12: Cuentas por cobrar por reconocimiento de tiempo servido en otras dependencias o instituciones públicas, de aquellos servidores en condición de propietarios que renunciaron al Poder Judicial. | D12: 329328038.1
